bitfinex-derivatives/quotes_BNBF0:USTF0_20260110
["timestamp","ask_amount","ask_price","bid_price","bid_amount"]
[1768077147138,2.72679797,913.95,912.16,0.68557635]
[1768077147337,2.72679797,913.95,912.17,0.68557635]
[1768077147540,2.72679797,913.95,912.18,0.68557635]
[1768077147840,2.72679797,913.95,912.19,0.68557635]
[1768077148037,2.72679797,913.95,912.2,0.68557635]
[1768077148238,2.72679797,913.95,912.14,2.614]
[1768077148539,2.72679797,913.95,912.15,0.68556234]
[1768077148741,2.72679797,913.95,912.16,0.68556234]
[1768077148938,2.72679797,913.95,912.17,0.68556234]
[1768077149241,2.72679797,913.95,912.18,0.68556234]
[1768077149442,2.72679797,913.95,912.19,0.68556234]
[1768077149742,2.72679797,913.98,912.2,0.68556234]
[1768077150040,2.72679797,913.98,912.21,0.68556234]
[1768077150238,2.72679797,913.98,912.22,0.68556234]
[1768077150440,2.72679797,913.98,912.23,0.68556234]
[1768077150643,2.72679797,913.98,912.14,2.614]
[1768077150842,2.72679797,913.98,912.15,0.68555789]
[1768077151040,2.72679797,913.98,912.16,0.68555789]
[1768077151244,2.72679797,913.97,912.17,0.68555789]
[1768077151446,2.72679797,913.97,912.18,0.68555789]
[1768077151744,2.72679797,913.97,912.19,0.68555789]
[1768077152040,2.72679797,913.97,912.2,0.68555789]
[1768077152244,2.72679797,913.97,912.21,0.68555789]
[1768077152540,2.72679797,913.97,912.22,0.68555789]
[1768077152841,2.72679797,913.97,912.14,2.614]
[1768077153040,2.72679797,913.97,912.15,0.68557336]
[1768077153245,2.72679797,913.92,912.16,0.68557336]
[1768077153546,2.72679797,913.92,912.14,2.614]
[1768077153846,2.72679797,913.92,912.15,0.68550324]
[1768077154042,2.72679797,913.92,912.16,0.68550324]
[1768077154244,2.72679797,913.92,912.14,2.614]
[1768077154448,2.72679797,913.92,912.15,0.68543542]
[1768077154742,2.72679797,913.92,912.16,0.68543542]
[1768077154943,2.72679797,913.92,912.14,2.614]
[1768077155146,2.72679797,913.92,912.15,0.68543461]
[1768077155342,2.72679797,913.93,912.14,2.614]
[1768077155544,2.72679797,913.93,912.15,0.68530297]
[1768077155744,2.72679797,913.93,912.14,2.614]
[1768077155948,2.72679797,913.93,912.15,0.68530297]
[1768077156249,2.72679797,913.93,912.14,2.614]
[1768077156444,2.72679797,914.09,912.15,0.68511531]
[1768077156646,2.72679797,914.09,912.16,0.68511531]
[1768077156949,2.72679797,914.18,912.17,0.68511531]
[1768077157148,2.72679797,914.18,912.18,0.68511531]
[1768077157345,2.72679797,914.18,912.19,0.68511531]
[1768077157548,2.72679797,914.2,912.2,0.68511531]
[1768077157745,2.72679797,914.2,912.21,0.68511531]
[1768077157949,2.72679797,914.2,912.22,0.68511531]
[1768077158145,2.72679797,914.18,912.23,0.68511531]
[1768077158351,2.72679797,914.18,912.24,0.68511531]
[1768077158649,2.72679797,914.18,912.25,0.68511531]
[1768077158848,2.72679797,914.18,912.26,0.68511531]
[1768077159049,2.72679797,914.18,912.27,0.68511531]
[1768077159253,2.72679797,914.18,912.28,0.68511531]
[1768077159452,2.72679797,914.18,912.29,0.68511531]
[1768077159653,2.72679797,914.18,912.3,0.68511531]
[1768077159853,2.72679797,914.18,912.31,0.68511531]
[1768077160054,2.72679797,914.11,912.32,0.68511531]
[1768077160351,2.72679797,914.11,912.33,0.68511531]
[1768077160555,2.72679797,914.11,912.14,2.614]
[1768077160751,2.72679797,914.11,912.15,0.68508479]
[1768077160951,2.72679797,914.11,912.16,0.68508479]
[1768077161156,2.72679797,914.11,912.17,0.68508479]
[1768077161356,2.72679797,914.11,912.18,0.68508479]
[1768077161557,2.72679797,914.11,912.19,0.68508479]
[1768077161855,2.72679797,914.11,912.2,0.68508479]
[1768077162055,2.72679797,914.11,912.21,0.68508479]
[1768077162256,2.72679797,914.11,912.22,0.68508479]
[1768077162451,2.72679797,914.11,912.23,0.68508479]
[1768077162655,2.72679797,914.11,912.24,0.68508479]
[1768077162953,2.72679797,914.11,912.25,0.68508479]
[1768077163151,2.72679797,914.11,912.26,0.68508479]
[1768077163356,2.72679797,914.11,912.27,0.68508479]
[1768077163552,2.72679797,914.11,912.14,2.614]
[1768077163553,2.72679797,914.11,912.28,0.68508479]
[1768077163756,2.72679797,914.11,912.29,0.68508479]
[1768077163953,2.72679797,914.11,912.3,0.68508479]
[1768077164252,2.72679797,914.11,912.31,0.68508479]
[1768077164553,2.72679797,914.11,912.32,0.68508479]
[1768077164756,2.72679797,914.11,912.33,0.68508479]
[1768077164956,2.72679797,914.11,912.14,2.614]
[1768077165152,2.72679797,914.11,912.15,0.68513079]
[1768077165356,2.72679797,914.11,912.16,0.68513079]
[1768077165558,2.72679797,914.11,912.17,0.68513079]
[1768077165758,2.72679797,914.11,912.18,0.68513079]
[1768077165954,2.72679797,914.11,912.19,0.68513079]
[1768077166154,2.72679797,914.11,912.2,0.68513079]
[1768077166353,2.72679797,914.11,912.21,0.68513079]
[1768077166657,2.72679797,914.11,912.22,0.68513079]
[1768077166851,2.72679797,914.11,912.23,0.68513079]
[1768077167054,2.72679797,914.11,912.24,0.68513079]
[1768077167255,2.72679797,914.11,912.25,0.68513079]
[1768077167453,2.72679797,914.11,912.14,2.614]
[1768077167454,2.72679797,914.11,912.26,0.68513079]
[1768077167654,2.72679797,914.11,912.27,0.68513079]
[1768077167856,2.72679797,914.11,912.28,0.68513079]
[1768077168054,2.72679797,914.11,912.29,0.68513079]
[1768077168254,2.72679797,914.11,912.3,0.68513079]
[1768077168555,2.72679797,914.11,912.31,0.68513079]
[1768077168856,2.72679797,914.11,912.32,0.68513079]
[1768077169058,2.72679797,914.11,912.33,0.68513079]
[1768077169257,2.72679797,914.11,912.34,0.68513079]
[1768077169459,2.72679797,914.1,912.14,2.614]
[1768077169661,2.72679797,914.1,912.15,0.68575937]
[1768077169956,2.72679797,914.14,912.16,0.68575937]
[1768077170159,2.72679797,914.14,912.17,0.68575937]
[1768077170356,2.72679797,914.14,912.18,0.68575937]
[1768077170660,2.72679797,914.14,912.19,0.68575937]
[1768077170855,2.72679797,914.14,912.2,0.68575937]
[1768077171059,2.72679797,914.14,912.21,0.68575937]
[1768077171360,2.72679797,914.14,912.22,0.68575937]
[1768077171659,2.72679797,914.14,912.23,0.68575937]
[1768077171959,2.72679797,914.14,912.24,0.68575937]
[1768077172259,2.72679797,914.14,912.25,0.68575937]
[1768077172458,2.72679797,914.14,912.26,0.68575937]
[1768077172656,2.72679797,914.14,912.27,0.68575937]
[1768077172859,2.72679797,914.14,912.28,0.68575937]
[1768077173059,2.72679797,914.14,912.29,0.68575937]
[1768077173257,2.72679797,914.14,912.3,0.68575937]
[1768077173460,2.72679797,914.13,912.31,0.68575937]
[1768077173659,2.72679797,914.13,912.32,0.68575937]
[1768077173957,2.72679797,914.13,912.33,0.68575937]
[1768077174158,2.72679797,914.13,912.34,0.68575937]
[1768077174360,2.72679797,914.13,912.35,0.68575937]
[1768077174660,2.72679797,914.13,912.36,0.68575937]
[1768077174861,2.72679797,914.13,912.37,0.68575937]
[1768077175058,2.72679797,914.13,912.38,0.68575937]
[1768077175263,2.72679797,914.13,912.14,2.614]
[1768077175463,2.72679797,914.13,912.15,0.68599287]
[1768077175660,2.72679797,914.13,912.16,0.68599287]
[1768077175964,2.72679797,914.13,912.17,0.68599287]
[1768077176264,2.72679797,914.13,912.18,0.68599287]
[1768077176465,2.72679797,914.13,912.19,0.68599287]
[1768077176665,2.72679797,914.12,912.2,0.68599287]
[1768077176865,2.72679797,914.12,912.21,0.68599287]
[1768077177065,2.72679797,914.12,912.22,0.68599287]
[1768077177365,2.72679797,914.12,912.23,0.68599287]
[1768077177568,2.72679797,914.12,912.24,0.68599287]
[1768077177763,2.72679797,914.12,912.25,0.68599287]
[1768077177966,2.72679797,914.12,912.26,0.68599287]
[1768077178165,2.72679797,914.12,912.27,0.68599287]
[1768077178369,2.72679797,914.12,912.28,0.68599287]
[1768077178567,2.72679797,914.12,912.29,0.68599287]
[1768077178867,2.72679797,914.12,912.3,0.68599287]
[1768077179067,2.72679797,914.12,912.31,0.68599287]
[1768077179271,2.72679797,914.12,912.32,0.68599287]
[1768077179566,2.72679797,914.12,912.33,0.68599287]
[1768077179771,2.72679797,914.11,912.34,0.68599287]
[1768077180066,2.72679797,914.11,912.35,0.68599287]
[1768077180267,2.72679797,914.11,912.36,0.68599287]
[1768077180573,2.72679797,914.11,912.37,0.68599287]
[1768077180769,2.72679797,914.11,912.38,0.68599287]
[1768077180968,2.72679797,914.11,912.39,0.68599287]
[1768077181172,2.72679797,914.11,912.4,0.68599287]
[1768077181370,2.72679797,914.11,912.41,0.68599287]
[1768077181569,2.72679797,914.11,912.12,0.8188079]
[1768077181772,2.72679797,914.11,912.13,0.68644209]
[1768077182072,2.72679797,914.11,912.14,0.68644209]
[1768077182270,2.72679797,914.11,912.15,0.68644209]
[1768077182470,2.72679797,914.1,912.16,0.68644209]
[1768077182674,2.72679797,914.1,912.17,0.68644209]
[1768077182873,2.72679797,914.1,912.18,0.68644209]
[1768077183074,2.72679797,914.1,912.19,0.68644209]
[1768077183273,2.72679797,914.1,912.2,0.68644209]
[1768077183473,2.72679797,914.1,912.21,0.68644209]
[1768077183674,2.72679797,914.1,912.22,0.68644209]
[1768077183875,2.72679797,914.13,912.23,0.68644209]
[1768077184076,2.72679797,914.13,912.24,0.68644209]
[1768077184371,2.72679797,914.13,912.15,0.8188079]
[1768077184372,2.72679797,914.13,912.25,0.68644209]
[1768077184572,2.72679797,914.13,912.26,0.68644209]
[1768077184772,2.72679797,914.13,912.27,0.68644209]
[1768077185078,2.72679797,914.14,912.28,0.68644209]
[1768077185281,2.72679797,914.14,912.16,0.8188079]
[1768077185282,2.72679797,914.14,912.29,0.68644209]
[1768077185480,2.72679797,914.14,912.3,0.68644209]
[1768077185679,2.72679797,914.14,912.31,0.68644209]
[1768077185882,2.72679797,914.14,912.32,0.68644209]
[1768077186081,2.72679797,914.14,912.33,0.68644209]
[1768077186278,2.72679797,914.14,912.34,0.68644209]
[1768077186482,2.72679797,914.14,912.35,0.68644209]
[1768077186679,2.72679797,914.14,912.36,0.68644209]
[1768077186882,2.72679797,914.14,912.37,0.68644209]
[1768077187083,2.72679797,914.14,912.38,0.68644209]
[1768077187383,2.72679797,914.14,912.39,0.68644209]
[1768077187578,2.72679797,914.22,912.4,0.68644209]
[1768077187783,2.72679797,914.22,912.41,0.68644209]
[1768077187981,2.72679797,914.22,912.42,0.68644209]
[1768077188180,2.72679797,914.22,912.43,0.68644209]
[1768077188483,2.72679797,914.22,912.44,0.68644209]
[1768077188779,2.72679797,914.22,912.45,0.68644209]
[1768077188984,2.72679797,914.22,912.46,0.68644209]
[1768077189181,3.81751716,914.55,912.47,0.68644209]
[1768077189182,2.72679797,914.23,912.47,0.68644209]
[1768077189380,2.72679797,914.23,912.48,0.68644209]
[1768077189584,2.72679797,914.23,912.49,0.68644209]
[1768077189785,2.72679797,914.23,912.3,2.056]
[1768077189786,2.72679797,914.22,912.5,0.68644209]
[1768077189980,2.72679797,914.22,912.51,0.68644209]
[1768077190181,2.72679797,914.14,912.3,2.056]
[1768077190385,2.72679797,914.14,912.31,0.68637935]
[1768077190581,2.72679797,914.14,912.32,0.68637935]
[1768077190885,2.72679797,914.12,912.33,0.68637935]
[1768077191185,2.72679797,914.12,912.34,0.68637935]
[1768077191481,2.72679797,914.12,912.35,0.68637935]
[1768077191685,2.72679797,914.12,912.36,0.68637935]
[1768077191886,2.72679797,914.12,912.37,0.68637935]
[1768077192183,2.72679797,914.12,912.38,0.68637935]
[1768077192381,2.72679797,914.12,912.39,0.68637935]
[1768077192585,2.72679797,914.12,912.4,0.68637935]
[1768077192880,2.72679797,914.12,912.41,0.68637935]
[1768077193084,2.72679797,914.12,912.42,0.68637935]
[1768077193282,2.72679797,914.12,912.43,0.68637935]
[1768077193481,2.72679797,914.12,912.3,2.056]
[1768077193781,2.72679797,914.12,912.31,0.68652947]
[1768077193986,2.72679797,914.12,912.32,0.68652947]
[1768077194181,2.72679797,914.12,912.33,0.68652947]
[1768077194386,2.72679797,914.11,912.34,0.68652947]
[1768077194584,2.72679797,914.11,912.35,0.68652947]
[1768077194788,2.72679797,914.11,912.36,0.68652947]
[1768077194986,2.72679797,914.11,912.37,0.68652947]
[1768077195188,2.72679797,914.11,912.38,0.68652947]
[1768077195388,2.72679797,914.11,912.39,0.68652947]
[1768077195585,2.72679797,914.11,912.4,0.68652947]
[1768077195789,2.72679797,914.11,912.41,0.68652947]
[1768077196089,2.72679797,914.11,912.42,0.68652947]
[1768077196290,2.72679797,914.11,912.43,0.68652947]
[1768077196490,2.72679797,914.1,912.44,0.68652947]
[1768077196692,2.72679797,914.1,912.3,2.056]
[1768077196891,2.72679797,914.1,912.31,0.68758451]
[1768077197088,2.72679797,914.1,912.32,0.68758451]
[1768077197391,2.72679797,914.1,912.33,0.68758451]
[1768077197686,2.72679797,914.1,912.34,0.68758451]
[1768077197887,2.72679797,914.1,912.35,0.68758451]
[1768077198090,2.72679797,914.1,912.36,0.68758451]
[1768077198289,2.72679797,914.1,912.37,0.68758451]
[1768077198492,2.72679797,914.1,912.38,0.68758451]
[1768077198793,2.72679797,914.09,912.39,0.68758451]
[1768077198991,2.72679797,914.09,912.3,2.056]
[1768077199192,2.72679797,914.02,912.31,0.68793587]
[1768077199487,2.72679797,914.02,912.32,0.68793587]
[1768077199788,2.72679797,914.01,912.33,0.68793587]
[1768077199988,2.72679797,914.01,912.34,0.68793587]
[1768077200192,2.72679797,913.94,912.3,2.056]
[1768077200392,2.72679797,913.94,912.31,0.68845932]
[1768077200592,2.72679797,913.91,912.32,0.68845932]
[1768077200892,2.72679797,913.91,912.33,0.68845932]
[1768077201090,2.72679797,913.9,912.3,2.056]
[1768077201294,2.72679797,913.9,912.31,0.68845961]
[1768077201589,2.72679797,913.88,912.32,0.68845961]
[1768077201893,2.72679797,913.88,912.33,0.68845961]
[1768077202088,2.72679797,913.88,912.34,0.68845961]
[1768077202293,2.72679797,913.88,912.35,0.68845961]
[1768077202492,2.72679797,913.88,912.3,2.056]
[1768077202690,2.72679797,913.88,912.31,0.68881986]
[1768077202892,2.72679797,913.88,912.32,0.68881986]
[1768077203091,2.72679797,913.88,912.33,0.68881986]
[1768077203292,2.72679797,913.88,912.34,0.68881986]
[1768077203593,2.72679797,913.88,912.05,0.8188079]
[1768077203792,2.72679797,913.88,912.06,0.68877188]
[1768077203994,2.72679797,913.88,912.07,0.68877188]
[1768077204193,2.72679797,913.88,912.08,0.68877188]
[1768077204395,2.72679797,913.88,912.09,0.68877188]
[1768077204595,2.72679797,913.88,912.1,0.68877188]
[1768077204796,2.72679797,913.88,912.11,0.68877188]
[1768077204997,2.72679797,913.88,912.12,0.68877188]
[1768077205197,2.72679797,913.88,912.13,0.68877188]
[1768077205398,2.72679797,913.88,912.14,0.68877188]
[1768077205598,2.72679797,913.88,912.15,0.68877188]
[1768077205800,2.72679797,913.88,912.16,0.68877188]
[1768077206001,2.72679797,913.88,912.17,0.68877188]
[1768077206297,2.72679797,913.88,912.18,0.68877188]
[1768077206497,2.72679797,913.89,912.19,0.68877188]
[1768077206702,2.72679797,913.89,912.2,0.68877188]
[1768077206900,2.72679797,913.89,912.21,0.68877188]
[1768077207098,2.72679797,913.89,912.22,0.68877188]
[1768077207402,2.72679797,913.89,912.23,0.68877188]
[1768077207602,2.72679797,913.89,912.24,0.68877188]
[1768077207800,2.72679797,913.89,912.25,0.68877188]
[1768077208000,2.72679797,913.89,912.26,0.68877188]
[1768077208204,2.72679797,913.89,912.27,0.68877188]
[1768077208404,2.72679797,913.89,912.28,0.68877188]
[1768077208604,2.72679797,913.89,912.29,0.68877188]
[1768077208803,2.72679797,913.89,912.3,0.68877188]
[1768077209001,2.72679797,913.89,912.31,0.68877188]
[1768077209203,2.72679797,913.89,912.32,0.68877188]
[1768077209407,2.72679797,913.89,912.33,0.68877188]
[1768077209706,2.72679797,913.89,912.34,0.68855714]
[1768077209909,2.72679797,913.89,912.35,0.68855714]
[1768077210108,3.81751716,914.22,912.17,3.0998079]
[1768077210109,2.72679797,914.02,912.36,0.68855714]
[1768077210310,2.72679797,914.02,912.37,0.68855714]
[1768077210508,2.72679797,914.02,912.38,0.68855714]
[1768077210805,2.72679797,914.02,912.39,0.68855714]
[1768077211008,2.72679797,914.02,912.4,0.68855714]
[1768077211304,2.72679797,914.02,912.41,0.68855714]
[1768077211509,2.72679797,914.02,912.42,0.68855714]
[1768077211806,2.72679797,914.02,912.43,0.68855714]
[1768077212006,2.72679797,914.02,912.44,0.68855714]
[1768077212206,2.72679797,914.03,912.45,0.68855714]
[1768077212410,2.72679797,914.03,912.46,0.68855714]
[1768077212610,2.72679797,914.03,912.17,3.0998079]
[1768077212811,2.72679797,914.03,912.18,0.68848171]
[1768077213010,2.72679797,914.03,912.19,0.68848171]
[1768077213210,2.72679797,914.03,912.2,0.68848171]
[1768077213410,2.72679797,914.03,912.21,0.68848171]
[1768077213611,2.72679797,914.03,912.22,0.68848171]
[1768077213810,2.72679797,914.03,912.23,0.68848171]
[1768077214008,2.72679797,914.03,912.24,0.68848171]
[1768077214211,2.72679797,914.03,912.25,0.68848171]
[1768077214508,2.72679797,914.03,912.26,0.68848171]
[1768077214711,2.72679797,914.03,912.27,0.68848171]
[1768077214912,2.72679797,914.03,912.28,0.68848171]
[1768077215110,2.72679797,914.03,912.29,0.68848171]
[1768077215414,2.72679797,914.03,912.3,0.68848171]
[1768077215608,2.72679797,914.03,912.31,0.68848171]
[1768077215908,2.72679797,914.03,912.32,0.68848171]
[1768077216107,2.72679797,914.03,912.33,0.68848171]
[1768077216307,2.72679797,914.03,912.34,0.68848171]
[1768077216512,2.72679797,914.03,912.35,0.68848171]
[1768077216710,2.72679797,914.03,912.36,0.68848171]
[1768077217013,2.72679797,914.03,912.37,0.68848171]
[1768077217213,2.72679797,914.03,912.38,0.68848171]
[1768077217513,2.72679797,914.03,912.39,0.68848171]
[1768077217810,2.72679797,914.03,912.4,0.68848171]
[1768077218009,2.72679797,914.03,912.41,0.68848171]
[1768077218213,2.72679797,914.03,912.42,0.68848171]
[1768077218414,2.72679797,914.03,912.43,0.68848171]
[1768077218712,2.72679797,914.03,912.44,0.68848171]
[1768077218909,2.72679797,914.03,912.45,0.68848171]
[1768077219114,2.72679797,914.03,912.17,2.281]
[1768077219416,2.72679797,914.03,912.18,0.68837525]
[1768077219614,2.72679797,914.03,912.19,0.68837525]
[1768077219812,2.72679797,913.99,912.2,0.68837525]
[1768077220012,2.72679797,913.99,912.21,0.68837525]
[1768077220212,2.72679797,913.99,912.22,0.68837525]
[1768077220514,2.72679797,913.99,912.23,0.68837525]
[1768077220711,2.72679797,913.99,912.24,0.68837525]
[1768077220915,2.72679797,913.99,912.25,0.68837525]
[1768077221115,2.72679797,913.99,912.26,0.68837525]
[1768077221312,2.72679797,913.99,912.27,0.68837525]
[1768077221516,2.72679797,913.99,912.28,0.68837525]
[1768077221715,2.72679797,913.99,912.29,0.68837525]
[1768077221915,2.72679797,913.99,912.17,2.281]
[1768077222115,2.72679797,913.88,912.18,0.68840012]
[1768077222318,2.72679797,913.88,912.19,0.68840012]
[1768077222517,2.72679797,913.87,912.2,0.68840012]
[1768077222718,2.72679797,913.87,912.21,0.68840012]
[1768077222918,2.72679797,913.87,912.22,0.68840012]
[1768077223116,2.72679797,913.86,912.23,0.68840012]
[1768077223320,0.19061704,913.46,912.24,0.68840012]
[1768077223522,0.19061704,913.46,912.25,0.68840012]
[1768077223714,0.19061704,913.46,912.17,2.281]
[1768077223919,0.19061704,913.46,912.18,0.6881303]
[1768077224116,0.19061704,913.46,912.19,0.6881303]
[1768077224417,0.19061704,913.46,912.2,0.6881303]
[1768077224621,0.19061704,913.46,912.21,0.6881303]
[1768077224821,0.19061704,913.46,912.22,0.6881303]
[1768077225017,0.19061704,913.46,912.23,0.6881303]
[1768077225220,0.19061704,913.46,912.24,0.6881303]
[1768077225421,0.19061704,913.46,912.17,2.281]
[1768077225620,0.19061704,913.46,912.18,0.68790832]
[1768077225824,0.19061704,913.46,912.19,0.68790832]
[1768077226025,0.19061704,913.46,912.2,0.68790832]
[1768077226322,0.19061704,913.46,912.21,0.68790832]
[1768077226625,0.19061704,913.46,912.22,0.68790832]
[1768077226825,0.19061704,913.46,912.23,0.68790832]
[1768077227125,0.19061704,913.46,912.17,2.281]
[1768077227421,0.19061704,913.46,912.18,0.6874072]
[1768077227620,0.19061704,913.46,912.19,0.6874072]
[1768077227825,0.19061704,913.46,912.2,0.6874072]
[1768077228019,0.19061704,913.46,912.21,0.6874072]
[1768077228224,0.19061704,913.46,912.22,0.6874072]
[1768077228423,0.19061704,913.46,912.23,0.6874072]
[1768077228623,0.19061704,913.46,912.17,2.281]
[1768077228825,0.19061704,913.46,912.18,0.6873319]
[1768077229025,0.19061704,913.46,912.19,0.6873319]
[1768077229225,0.19061704,913.46,912.2,0.6873319]
[1768077229425,0.19061704,913.46,912.21,0.6873319]
[1768077229623,0.19061704,913.46,912.22,0.6873319]
[1768077229827,0.19061704,913.46,912.23,0.6873319]
[1768077230126,0.19061704,913.46,912.24,0.6873319]
[1768077230423,0.19061704,913.46,912.25,0.6873319]
[1768077230623,0.19061704,913.46,912.26,0.6873319]
[1768077230823,0.19061704,913.46,912.17,2.281]
[1768077231024,0.19061704,913.46,912.18,0.68723829]
[1768077231324,0.19061704,913.46,912.19,0.68723829]
[1768077231622,0.19061704,913.46,912.2,0.68723829]
[1768077231827,0.19061704,913.46,912.21,0.68723829]
[1768077232028,0.19061704,913.46,912.22,0.68723829]
[1768077232225,0.19061704,913.46,912.23,0.68723829]
[1768077232426,0.19061704,913.46,912.24,0.68723829]
[1768077232722,0.19061704,913.46,912.25,0.68723829]
[1768077232927,0.19061704,913.46,912.17,2.281]
[1768077233125,0.19061704,913.46,912.18,0.6871833]
[1768077233427,0.19061704,913.46,912.19,0.6871833]
[1768077233627,0.19061704,913.46,912.2,0.6871833]
[1768077233825,0.19061704,913.46,912.21,0.6871833]
[1768077234027,0.19061704,913.46,912.22,0.6871833]
[1768077234226,0.19061704,913.46,912.17,2.281]
[1768077234227,0.19061704,913.46,912.23,0.6871833]
[1768077234528,0.19061704,913.46,912.24,0.6871833]
[1768077234727,0.19061704,913.46,912.25,0.6871833]
[1768077234924,0.19061704,913.46,912.26,0.6871833]
[1768077235229,0.19061704,913.46,912.17,2.281]
[1768077235429,0.19061704,913.46,912.18,0.68735013]
[1768077235726,0.19061704,913.46,912.19,0.68735013]
[1768077236028,0.19061704,913.46,912.2,0.68735013]
[1768077236226,0.19061704,913.46,912.21,0.68735013]
[1768077236425,0.19061704,913.46,912.22,0.68735013]
[1768077236623,0.19061704,913.46,912.23,0.68735013]
[1768077236828,0.19061704,913.46,912.24,0.68735013]
[1768077237027,0.19061704,913.46,912.25,0.68735013]
[1768077237230,0.19061704,913.46,912.26,0.68735013]
[1768077237527,0.19061704,913.46,912.17,2.281]
[1768077237731,0.19061704,913.46,912.18,0.68736541]
[1768077237928,0.19061704,913.46,912.19,0.68736541]
[1768077238127,0.19061704,913.46,912.2,0.68736541]
[1768077238430,0.19061704,913.46,912.21,0.68736541]
[1768077238630,0.19061704,913.46,912.22,0.68736541]
[1768077238831,0.19061704,913.46,912.23,0.68736541]
[1768077239127,0.19061704,913.46,912.24,0.68736541]
[1768077239327,0.19061704,913.46,912.25,0.68736541]
[1768077239526,0.19061704,913.46,912.26,0.68736541]
[1768077239729,0.19061704,913.46,912.27,0.68736541]
[1768077240029,0.19061704,913.46,912.28,0.68736541]
[1768077240229,0.19061704,913.46,912.17,2.281]
[1768077240433,0.19061704,913.46,912.18,0.68746313]
[1768077240630,0.19061704,913.46,912.19,0.68746313]
[1768077240834,0.19061704,913.46,912.2,0.68746313]
[1768077241032,0.19061704,913.46,912.21,0.68746313]
[1768077241230,0.19061704,913.46,912.22,0.68746313]
[1768077241436,0.19061704,913.46,912.23,0.68746313]
[1768077241636,0.19061704,913.46,912.24,0.68746313]
[1768077241831,0.19061704,913.46,912.25,0.68746313]
[1768077242134,0.19061704,913.46,912.26,0.68746313]
[1768077242335,0.19061704,913.46,912.27,0.68746313]
[1768077242632,0.19061704,913.46,912.17,2.281]
[1768077242837,0.19061704,913.46,912.18,0.68757678]
[1768077243031,0.19061704,913.46,912.19,0.68757678]
[1768077243231,0.19061704,913.46,912.2,0.68757678]
[1768077243536,0.19061704,913.46,912.21,0.68757678]
[1768077243732,0.19061704,913.46,912.22,0.68757678]
[1768077244034,0.19061704,913.46,912.17,2.281]
[1768077244035,0.19061704,913.46,912.23,0.68757678]
[1768077244236,0.19061704,913.46,912.24,0.68757678]
[1768077244536,0.19061704,913.46,912.25,0.68757678]
[1768077244737,0.19061704,913.46,912.04,7.79782039]
[1768077245036,0.19061704,913.46,912.05,0.6877323]
[1768077245333,0.19061704,913.46,912.06,0.6877323]
[1768077245536,0.19061704,913.46,912.07,0.6877323]
[1768077245735,0.19061704,913.46,912.08,0.6877323]
[1768077245936,0.19061704,913.46,912.09,0.6877323]
[1768077246133,0.19061704,913.46,912.1,0.6877323]
[1768077246436,0.19061704,913.46,912.04,7.79782039]
[1768077246635,0.19061704,913.46,912.05,0.68777113]
[1768077246831,0.19061704,913.46,912.06,0.68777113]
[1768077247031,0.19061704,913.46,912.07,0.68777113]
[1768077247236,0.19061704,913.46,912.08,0.68777113]
[1768077247433,0.19061704,913.46,912.09,0.68777113]
[1768077247646,0.19061704,913.46,912.1,0.68777113]
[1768077247933,0.19061704,913.46,912.06,2.151]
[1768077248136,0.19061704,913.46,912.07,0.68776989]
[1768077248335,0.19061704,913.46,912.08,0.68776989]
[1768077248634,0.19061704,913.46,912.09,0.68776989]
[1768077248833,0.19061704,913.46,912.1,0.68776989]
[1768077249033,0.19061704,913.46,912.06,2.151]
[1768077249337,0.19061704,913.46,912.07,0.68777064]
[1768077249532,0.19061704,913.46,912.08,0.68777064]
[1768077249735,0.19061704,913.46,912.06,2.151]
[1768077255738,0.19061704,913.46,912.07,0.68719806]
[1768077255941,0.19061704,913.46,912.08,0.68719806]
[1768077256139,0.19061704,913.46,912.09,0.68719806]
[1768077256338,0.19061704,913.46,912.1,0.68719806]
[1768077256539,0.19061704,913.46,912.11,0.68719806]
[1768077256740,0.19061704,913.46,912.12,0.68719806]
[1768077256942,0.19061704,913.46,912.13,0.68719806]
[1768077257139,0.19061704,913.46,912.14,0.68719806]
[1768077257443,0.19061704,913.46,912.15,0.68719806]
[1768077257643,0.19061704,913.46,912.16,0.68719806]
[1768077257845,0.19061704,913.46,912.17,0.68719806]
[1768077258045,0.19061704,913.46,912.18,0.68719806]
[1768077258341,0.19061704,913.46,912.19,0.68719806]
[1768077258645,0.19061704,913.46,912.2,0.68719806]
[1768077258840,0.19061704,913.46,912.21,0.68719806]
[1768077259045,0.19061704,913.46,912.07,8.26574199]
[1768077259242,0.19061704,913.46,912.08,0.68391786]
[1768077259441,0.19061704,913.46,912.09,0.68391786]
[1768077259641,0.19061704,913.46,912.1,0.68391786]
[1768077259844,0.19061704,913.46,912.11,0.68391786]
[1768077260042,0.19061704,913.46,912.12,0.68391786]
[1768077260246,0.19061704,913.46,912.13,0.68391786]
[1768077260446,0.19061704,913.46,912.14,0.68391786]
[1768077260743,0.19061704,913.46,912.15,0.68391786]
[1768077260941,0.19061704,913.46,912.16,0.68391786]
[1768077261146,0.19061704,913.46,912.17,0.68391786]
[1768077261347,0.19061704,913.46,912.18,0.68391786]
[1768077261542,0.19061704,913.46,912.19,0.68391786]
[1768077261746,0.19061704,913.46,912.2,0.68391786]
[1768077261944,0.19061704,913.46,912.21,0.68391786]